bitfinex-derivatives/quotes_SOLF0:USTF0_20260304
["timestamp","ask_amount","ask_price","bid_price","bid_amount"]
[1772659760055,10.58616513,92.67,92.621,6.56495555]
[1772659760256,7.23469512,92.669,92.621,6.56495555]
[1772659761353,7.23469512,92.669,92.625,9.712]
[1772659762856,7.23469512,92.669,92.625,16.27695555]
[1772659763056,7.23469512,92.669,92.61,3.35147001]
[1772659763057,7.23469512,92.669,92.627,9.711]
[1772659763258,0.06812113,92.656,92.627,9.711]
[1772659763952,0.06812113,92.656,92.626,6.56495555]
[1772659764149,0.06812113,92.656,92.62,9.712]
[1772659766258,6.88149997,92.656,92.62,9.712]
[1772659767656,6.81337884,92.649,92.611,9.713]
[1772659767858,6.81337884,92.639,92.601,6.87754978]
[1772659768054,3.35147001,92.63,92.581,6.87754978]
[1772659768364,16.85471244,92.678,92.581,6.87754978]
[1772659768365,3.35147001,92.62,92.581,6.87754978]
[1772659768557,3.35717872,92.62,92.581,6.87754978]
[1772659769561,0.06804556,92.61,92.589,9.715]
[1772659772365,6.81337884,92.629,92.592,9.715]
[1772659775466,6.81337884,92.629,92.59,6.87754978]
[1772659776366,6.81337884,92.629,92.591,9.715]
[1772659778267,3.35717872,92.6,92.539,6.87754978]
[1772659778472,3.35717872,92.6,92.551,6.87754978]
[1772659778870,6.81337884,92.589,92.551,6.87754978]
[1772659780371,6.81337884,92.599,92.551,6.87754978]
[1772659781365,6.81337884,92.599,92.553,9.719]
[1772659782368,3.35717872,92.59,92.553,9.719]
[1772659784377,6.81337884,92.579,92.538,6.87754978]
[1772659784675,3.35717872,92.57,92.538,6.87754978]
[1772659784875,6.81337884,92.569,92.527,6.87754978]
[1772659785477,6.81337884,92.569,92.536,9.721]
[1772659785868,3.35717872,92.59,92.544,9.72]
[1772659786072,6.81337884,92.591,92.544,9.72]
[1772659786474,6.81337884,92.591,92.551,9.719]
[1772659787074,7.81,92.59,92.551,9.719]
[1772659789371,7.81,92.59,92.552,7.46579603]
[1772659790079,9.715,92.589,92.552,7.46579603]
[1772659794777,3.35717872,92.56,92.502,7.46579603]
[1772659795083,3.35717872,92.54,92.502,7.46579603]
[1772659795374,7.35186346,92.559,92.502,7.46579603]
[1772659795581,3.35717872,92.55,92.502,7.46579603]
[1772659795782,10.70904218,92.55,92.503,7.46579603]
[1772659795977,7.35186346,92.549,92.503,7.46579603]
[1772659797482,17.07186346,92.549,92.506,7.46579603]
[1772659797879,7.35186346,92.589,92.506,7.46579603]
[1772659798076,7.35186346,92.579,92.521,7.46579603]
[1772659798377,7.35186346,92.579,92.531,7.46579603]
[1772659798583,7.81,92.59,92.541,7.46579603]
[1772659798776,7.35186346,92.589,92.541,7.46579603]
[1772659798982,9.716,92.581,92.541,7.46579603]
[1772659799282,7.35186346,92.58,92.541,7.46579603]
[1772659799583,7.35186346,92.579,92.53,3.35717872]
[1772659799883,7.35186346,92.579,92.527,7.46579603]
[1772659800078,7.35186346,92.579,92.546,0.06822714]
[1772659800274,7.35186346,92.569,92.512,7.46579603]
[1772659800780,10.70904218,92.54,92.497,7.46579603]
[1772659800984,7.81,92.59,92.444,19.462]
[1772659800985,10.70904218,92.53,92.482,7.46579603]
[1772659801185,20.43104218,92.53,92.482,7.46579603]
[1772659802280,17.07386346,92.53,92.482,7.46579603]
[1772659802976,20.43104218,92.53,92.482,7.46579603]
[1772659803483,0.06814283,92.515,92.482,7.46579603]
[1772659803685,7.35186346,92.545,92.51,3.35717872]
[1772659803982,10.70904218,92.56,92.51,3.35717872]
[1772659804183,9.719,92.552,92.51,3.35717872]
[1772659805283,9.719,92.552,92.511,7.46579603]
[1772659805980,7.35186346,92.548,92.5,3.35717872]
[1772659806185,7.35186346,92.529,92.481,7.46579603]
[1772659806684,13.08017872,92.52,92.481,7.46579603]
[1772659806976,7.35186346,92.499,92.446,7.46579603]
[1772659807178,7.35186346,92.497,92.446,7.46579603]
[1772659809075,7.35186346,92.497,92.446,17.19579603]
[1772659809475,7.35186346,92.497,92.446,7.46579603]
[1772659812086,7.35186346,92.497,92.462,0.06829482]
[1772659814586,7.35186346,92.492,92.432,7.46579603]
[1772659814787,7.35186346,92.492,92.415,7.46579603]
[1772659815288,7.35186346,92.466,92.415,7.46579603]
[1772659815683,7.35186346,92.464,92.399,7.46579603]
[1772659816281,17.08186346,92.455,92.408,9.734]
[1772659816489,7.35186346,92.455,92.408,9.734]
[1772659816682,7.35186346,92.479,92.409,7.46579603]
[1772659818489,7.35186346,92.463,92.411,7.3026772]
[1772659818992,7.06654845,92.499,92.411,7.3026772]
[1772659819384,9.728,92.471,92.419,7.3026772]
[1772659820389,151.212,92.543,92.322,151.573]
[1772659820390,7.06654845,92.452,92.381,7.3026772]
[1772659820995,7.21405183,92.46,92.381,7.3026772]
[1772659821291,7.06654845,92.459,92.381,7.3026772]
[1772659821494,7.06654845,92.459,92.399,7.3026772]
[1772659822393,9.73,92.452,92.4,9.735]
[1772659822897,7.06654845,92.459,92.4,9.735]
[1772659823197,7.06654845,92.443,92.383,7.3026772]
[1772659823998,16.79854845,92.435,92.386,9.737]
[1772659824395,7.06654845,92.43,92.383,7.3026772]
[1772659824795,7.06654845,92.43,92.368,7.3026772]
[1772659825099,7.06654845,92.414,92.368,7.3026772]
[1772659826198,9.735,92.404,92.353,9.74]
[1772659826395,7.06654845,92.414,92.352,7.5977716]
[1772659827102,6.27,92.434,92.361,7.5977716]
[1772659827402,6.27,92.434,92.381,7.5977716]
[1772659828197,6.27,92.434,92.4,9.735]
[1772659829500,7.3635992,92.463,92.417,7.5977716]
[1772659829894,7.3635992,92.463,92.4,7.21405183]
[1772659829895,7.3635992,92.463,92.402,7.5977716]
[1772659830903,7.3635992,92.458,92.387,7.5977716]
[1772659831700,7.3635992,92.442,92.387,7.5977716]
[1772659831903,7.3635992,92.442,92.391,7.5977716]
[1772659833406,7.3635992,92.442,92.399,9.735]
[1772659834005,7.3635992,92.44,92.376,7.5977716]
[1772659834711,7.21865218,92.47,92.35,7.21865218]
[1772659834712,7.21865218,92.47,92.392,7.5977716]
[1772659835606,9.73,92.453,92.406,9.735]
[1772659837609,9.73,92.453,92.4,7.5977716]
[1772659837809,7.3635992,92.461,92.4,7.5977716]
[1772659838810,7.3635992,92.46,92.4,7.5977716]
[1772659839308,9.73,92.451,92.402,7.5977716]
[1772659840014,9.731,92.445,92.402,7.5977716]
[1772659840214,7.3635992,92.46,92.402,7.5977716]
[1772659840712,7.3635992,92.46,92.404,7.5977716]
[1772659841114,0.06828172,92.44,92.404,7.5977716]
[1772659842413,0.06828172,92.44,92.408,7.5977716]
[1772659843116,7.83,92.461,92.417,7.5977716]
[1772659843617,7.3635992,92.476,92.439,9.731]
[1772659843912,7.3635992,92.509,92.439,9.731]
[1772659844111,7.3635992,92.509,92.434,7.5977716]
[1772659844313,9.727,92.482,92.436,7.5977716]
[1772659845517,9.727,92.482,92.439,9.731]
[1772659846015,9.728,92.475,92.436,7.5977716]
[1772659848515,7.3635992,92.49,92.436,7.5977716]
[1772659849324,7.3635992,92.49,92.454,0.06830748]
[1772659849524,9.726,92.489,92.454,0.06830748]
[1772659849916,16.7185031,92.489,92.454,0.06830748]
[1772659850219,6.9925031,92.488,92.454,0.06830748]
[1772659850420,6.9925031,92.488,92.422,7.0641519]
[1772659851426,9.728,92.469,92.423,7.0641519]
[1772659851820,6.9925031,92.475,92.423,7.0641519]
[1772659852023,6.9925031,92.508,92.435,7.0641519]
[1772659852524,6.9925031,92.489,92.437,16.7951519]
[1772659853426,9.726,92.486,92.438,7.0641519]
[1772659854529,9.726,92.486,92.44,10.43056295]
[1772659854921,9.726,92.486,92.441,9.731]
[1772659855426,9.726,92.493,92.451,7.0641519]
[1772659855628,6.9925031,92.504,92.451,7.0641519]
[1772659856130,9.725,92.5,92.46,3.36641105]
[1772659860325,9.725,92.5,92.382,26.69414653]
[1772659860326,6.9925031,92.518,92.471,7.0641519]
[1772659860531,6.9925031,92.533,92.481,7.0641519]
[1772659860728,6.9925031,92.51,92.463,16.7931519]
[1772659860929,6.9925031,92.51,92.421,19.467]
[1772659860930,6.9925031,92.509,92.451,7.0641519]
[1772659861133,6.9925031,92.509,92.46,3.36641105]
[1772659861334,6.9925031,92.509,92.461,7.0641519]
[1772659861529,6.9925031,92.509,92.464,7.0641519]
[1772659861728,6.9925031,92.509,92.46,3.36641105]
[1772659863235,6.9925031,92.509,92.462,9.729]
[1772659863735,9.724,92.508,92.46,10.43056295]
[1772659864232,9.724,92.508,92.461,7.0641519]
[1772659864537,9.724,92.508,92.475,0.06840193]
[1772659866234,9.725,92.501,92.475,0.06840193]
[1772659866536,6.9925031,92.509,92.475,0.06840193]
[1772659869233,6.9925031,92.522,92.48,3.36641105]
[1772659869736,9.723,92.521,92.48,3.36641105]
[1772659869937,6.9925031,92.522,92.48,3.36641105]
[1772659870237,6.9925031,92.522,92.473,7.0641519]
[1772659870439,6.9925031,92.509,92.456,7.0641519]
[1772659871441,6.9925031,92.509,92.457,9.729]
[1772659872641,6.9925031,92.506,92.457,7.0641519]
[1772659872842,6.9925031,92.506,92.461,7.0641519]
[1772659873141,6.9925031,92.506,92.461,16.7931519]
[1772659873336,6.9925031,92.506,92.462,7.0641519]
[1772659874446,9.724,92.505,92.463,9.729]
[1772659876448,6.9925031,92.506,92.47,3.36641105]
[1772659876643,6.9925031,92.506,92.462,7.0641519]
[1772659878246,9.724,92.505,92.475,0.0681583]
[1772659878639,7.49750831,92.504,92.475,0.0681583]
[1772659880346,7.49750831,92.519,92.475,0.0681583]
[1772659880545,7.49750831,92.519,92.481,7.34925625]
[1772659880750,7.49750831,92.519,92.48,3.36641105]
[1772659880950,7.49750831,92.517,92.475,9.7951583]
[1772659881249,7.49750831,92.517,92.475,0.0681583]
[1772659881449,7.49750831,92.515,92.475,0.0681583]
[1772659882051,7.49750831,92.515,92.477,9.727]
[1772659882652,9.724,92.513,92.475,0.0681583]
[1772659882855,7.49750831,92.515,92.475,0.0681583]
[1772659884453,7.49750831,92.515,92.476,9.727]
[1772659884852,7.49750831,92.515,92.475,0.0681583]
[1772659885048,7.49750831,92.515,92.48,3.36641105]
[1772659886054,7.49750831,92.515,92.476,7.34925625]
[1772659886558,7.49750831,92.515,92.488,9.726]
[1772659888060,7.10315177,92.527,92.488,9.726]
[1772659888555,7.10315177,92.524,92.48,3.36641105]
[1772659888759,8.03,92.529,92.439,19.463]
[1772659888760,7.10315177,92.519,92.464,7.35173286]
[1772659889457,7.10315177,92.519,92.476,9.727]
[1772659890261,7.10315177,92.518,92.476,9.727]
[1772659890456,7.10315177,92.518,92.47,3.36641105]
[1772659890658,9.724,92.508,92.47,3.36641105]
[1772659890866,7.10315177,92.518,92.47,3.36641105]
[1772659892262,7.10315177,92.518,92.466,9.728]
[1772659892565,7.10315177,92.509,92.466,9.728]
[1772659893567,9.724,92.508,92.466,9.728]
[1772659893766,7.10315177,92.509,92.472,9.728]
[1772659894866,7.10315177,92.536,92.481,7.35173286]
[1772659895070,3.36461129,92.53,92.481,7.35173286]
[1772659895267,7.10315177,92.529,92.481,7.35173286]
[1772659896466,9.722,92.525,92.481,7.35173286]
[1772659896769,16.82515177,92.525,92.481,7.35173286]
[1772659897371,16.82515177,92.525,92.494,0.06878668]
[1772659899272,7.10315177,92.538,92.494,0.06878668]
[1772659899773,7.10315177,92.538,92.493,7.35173286]
[1772659900376,7.10315177,92.538,92.501,9.725]
[1772659902572,8.3512363,92.549,92.493,7.35173286]
[1772659902573,16.82415177,92.536,92.493,7.35173286]
[1772659903971,7.10315177,92.535,92.493,7.35173286]
[1772659904378,7.10315177,92.535,92.495,9.725]
[1772659905177,7.10315177,92.535,92.493,7.35173286]
[1772659905479,7.10315177,92.535,92.435,26.69414653]
[1772659905480,7.10315177,92.509,92.465,7.35173286]
[1772659905773,7.10315177,92.509,92.466,9.728]
[1772659905975,7.10315177,92.509,92.453,7.35173286]
[1772659906183,7.10315177,92.499,92.453,7.35173286]
[1772659906981,7.10315177,92.499,92.459,7.35173286]
[1772659908380,7.10315177,92.499,92.46,9.729]
[1772659909289,7.10315177,92.499,92.46,13.09361129]
[1772659909580,7.10315177,92.499,92.46,9.729]
[1772659910378,7.10315177,92.499,92.452,9.73]
[1772659910975,7.49135014,92.489,92.452,9.73]
[1772659913781,7.49135014,92.489,92.442,9.731]
[1772659913982,3.36461129,92.48,92.442,9.731]
[1772659914383,7.49135014,92.479,92.442,9.731]
[1772659914778,7.49135014,92.479,92.434,16.71464857]
[1772659914983,7.49135014,92.459,92.405,6.98264857]
[1772659916888,7.49135014,92.459,92.418,9.733]
[1772659917290,7.49135014,92.459,92.423,0.06819723]
[1772659920284,3.36461129,92.49,92.44,3.36461129]
[1772659920486,7.49135014,92.491,92.441,6.98264857]
[1772659920689,7.49135014,92.505,92.451,6.98264857]
[1772659920889,7.49135014,92.505,92.46,3.36461129]
[1772659921693,7.49135014,92.505,92.451,6.98264857]
[1772659922488,7.49135014,92.489,92.44,3.36461129]
[1772659922688,7.49135014,92.489,92.438,6.98264857]
[1772659922689,3.36461129,92.48,92.438,6.98264857]
[1772659922993,7.49135014,92.479,92.438,6.98264857]
[1772659923182,7.49135014,92.512,92.44,6.98264857]
[1772659923386,7.49135014,92.512,92.461,6.98264857]
[1772659923683,7.49135014,92.527,92.471,6.98264857]
[1772659923990,9.724,92.513,92.471,16.71064857]
[1772659924183,9.724,92.513,92.428,19.465]
[1772659924184,3.36461129,92.51,92.456,6.98264857]
[1772659924392,7.49135014,92.498,92.408,6.98264857]
[1772659924690,7.49135014,92.498,92.45,3.36461129]
[1772659925084,7.49135014,92.498,92.46,3.36461129]
[1772659925288,7.49135014,92.519,92.46,3.36461129]
[1772659926188,9.724,92.506,92.461,9.729]
[1772659927490,9.725,92.494,92.453,9.73]
[1772659927686,13.07583406,92.561,92.441,6.98264857]
[1772659927687,7.49135014,92.489,92.441,6.98264857]
[1772659928192,9.82921838,92.536,92.407,19.47]
[1772659928193,7.49135014,92.503,92.451,6.98264857]
[1772659928393,7.49135014,92.518,92.461,6.98264857]
[1772659928895,7.49135014,92.518,92.468,0.06835629]
[1772659929396,9.724,92.507,92.468,0.06835629]
[1772659933596,9.723,92.515,92.471,6.98264857]
[1772659933999,7.49135014,92.532,92.48,3.36461129]
[1772659934297,9.722,92.531,92.482,9.727]
[1772659934596,3.36461129,92.55,92.5,3.36461129]
[1772659934797,7.49135014,92.551,92.501,6.98264857]
[1772659934999,3.36461129,92.54,92.49,3.36461129]
[1772659935301,7.49135014,92.539,92.49,3.36461129]
[1772659937498,17.21235014,92.539,92.49,13.09061129]
[1772659938903,9.721,92.535,92.49,13.09061129]
[1772659939104,7.03148339,92.534,92.49,13.09061129]
[1772659940395,9.722,92.532,92.49,13.09061129]
[1772659940996,7.03148339,92.534,92.49,13.09061129]
[1772659941905,9.721,92.533,92.49,13.09061129]
[1772659942202,7.03148339,92.529,92.482,9.727]
[1772659942405,7.03148339,92.519,92.47,10.77328343]
[1772659942598,7.03148339,92.509,92.46,3.36461129]
[1772659942799,7.03148339,92.509,92.465,9.728]
[1772659943200,7.03148339,92.507,92.465,17.13667214]
[1772659943401,7.03148339,92.507,92.457,9.729]
[1772659944105,8.42715585,92.561,92.45,10.77328343]
[1772659944106,7.03148339,92.498,92.45,10.77328343]
[1772659947204,9.726,92.489,92.446,7.40867214]
[1772659947706,9.726,92.489,92.447,9.73]
[1772659947907,7.03148339,92.495,92.45,3.36461129]
[1772659948707,7.03148339,92.495,92.451,7.55773574]
[1772659948908,7.24254549,92.509,92.46,3.36461129]
[1772659949803,7.24254549,92.509,92.475,0.06828037]
[1772659950508,9.725,92.501,92.475,0.06828037]
[1772659955308,9.726,92.491,92.475,0.06828037]
[1772659955511,16.96854549,92.491,92.451,7.55773574]
[1772659957215,7.24254549,92.491,92.452,9.73]
[1772659958512,7.24254549,92.491,92.452,17.28773574]
[1772659959816,9.726,92.49,92.452,7.55773574]
[1772659962913,7.24254549,92.487,92.438,9.731]
[1772659963117,7.24254549,92.469,92.425,7.55773574]
[1772659963311,9.728,92.468,92.425,7.55773574]
[1772659963517,7.24254549,92.479,92.439,9.731]
[1772659964629,9.727,92.484,92.444,7.55773574]
[1772659966019,7.24254549,92.48,92.431,7.55773574]
[1772659967218,7.24254549,92.48,92.44,9.731]
[1772659968524,9.727,92.477,92.44,9.731]
[1772659974329,9.727,92.477,92.44,17.08977591]
[1772659977033,7.69070053,92.469,92.374,26.69414653]
[1772659977235,7.69070053,92.469,92.411,7.35877591]
[1772659977535,3.36520694,92.46,92.411,7.35877591]
[1772659977834,11.05590747,92.46,92.411,7.35877591]
[1772659978039,7.69070053,92.46,92.411,7.35877591]
[1772659978230,7.69070053,92.46,92.422,7.35877591]
[1772659979034,7.69070053,92.46,92.41,3.36520694]
[1772659979236,7.69070053,92.459,92.409,7.35877591]
[1772659979742,17.42070053,92.452,92.409,7.35877591]
[1772659979941,7.69070053,92.452,92.411,7.35877591]
[1772659980235,9.728,92.467,92.43,3.36520694]
[1772659980741,7.69070053,92.472,92.43,3.36520694]
[1772659980942,7.69070053,92.472,92.43,9.732]
[1772659981144,7.69070053,92.469,92.429,7.35877591]
[1772659981442,7.69070053,92.459,92.429,7.35877591]
[1772659981640,9.73,92.451,92.429,7.35877591]
[1772659982036,17.42070053,92.451,92.429,7.35877591]
[1772659982248,17.42070053,92.451,92.407,9.735]
[1772659982444,17.42070053,92.451,92.407,17.09377591]
[1772659982635,17.42070053,92.451,92.409,9.734]
[1772659985246,7.69070053,92.451,92.415,9.734]
[1772659986547,9.729,92.465,92.422,7.35877591]
[1772659986749,7.69070053,92.479,92.43,3.36520694]
[1772659986960,7.69070053,92.479,92.431,7.35877591]
[1772659987547,17.41770053,92.478,92.438,9.731]
[1772659987742,7.69070053,92.478,92.438,17.08977591]
[1772659988148,7.69070053,92.478,92.438,7.35877591]
[1772659989048,7.69070053,92.491,92.445,17.08977591]
[1772659989453,18.34768028,92.526,92.445,17.08977591]
[1772659989454,7.69070053,92.489,92.445,17.08977591]
[1772659990155,9.727,92.482,92.445,7.35877591]
[1772659991053,7.69070053,92.481,92.436,9.731]
[1772659991253,7.69070053,92.494,92.441,7.35877591]
[1772659991451,7.69070053,92.489,92.441,7.35877591]
[1772659991947,17.41670053,92.488,92.442,9.731]
[1772659992154,17.41670053,92.488,92.443,7.35877591]
[1772659992344,7.69070053,92.487,92.443,7.35877591]
[1772659992546,11.05590747,92.48,92.443,7.35877591]
[1772659992754,7.69070053,92.479,92.431,7.35877591]
[1772659993152,7.69070053,92.479,92.438,9.731]
[1772659993346,7.69070053,92.479,92.439,7.35877591]
[1772659994555,7.69070053,92.479,92.44,3.36520694]
[1772659994856,7.69070053,92.479,92.442,9.731]
[1772659995256,7.69070053,92.479,92.441,7.35877591]
[1772659997362,7.69070053,92.477,92.441,7.35877591]
[1772659999856,7.14991698,92.476,92.43,9.732]
[1772660000658,7.14991698,92.476,92.431,7.09650375]
[1772660001367,7.14991698,92.474,92.431,7.09650375]
[1772660001768,7.14991698,92.469,92.422,9.733]
[1772660002265,7.14991698,92.459,92.404,7.09650375]
[1772660002463,7.14991698,92.449,92.404,7.09650375]
[1772660002669,7.14991698,92.438,92.399,9.735]
[1772660003166,7.14991698,92.438,92.391,7.09650375]
[1772660004370,7.14991698,92.438,92.405,9.735]
[1772660006072,7.14991698,92.438,92.398,7.36874734]
[1772660007475,7.14991698,92.438,92.399,9.735]
[1772660008373,7.14991698,92.438,92.403,9.735]
[1772660008773,16.88091698,92.438,92.4,7.36874734]
[1772660009973,16.88091698,92.438,92.401,9.735]
[1772660010180,7.14991698,92.438,92.401,9.735]
[1772660011273,7.14991698,92.438,92.408,9.734]
[1772660016279,7.14991698,92.438,92.402,7.36874734]
[1772660017482,7.14991698,92.438,92.403,9.735]
[1772660018284,9.732,92.437,92.402,7.36874734]
[1772660019184,7.14991698,92.438,92.402,17.10374734]
[1772660019486,7.14991698,92.438,92.4,3.36979711]
[1772660019678,7.14991698,92.438,92.401,7.36874734]
[1772660019883,7.2412917,92.459,92.401,7.36874734]
[1772660020386,9.73,92.447,92.404,9.735]
[1772660020676,9.73,92.447,92.378,1.88286217]
[1772660020677,7.2412917,92.459,92.42,3.36979711]
[1772660021379,7.2412917,92.459,92.42,13.10279711]
[1772660024889,16.9702917,92.458,92.42,9.733]
[1772660026495,16.9712917,92.456,92.42,9.733]
[1772660027092,7.2412917,92.455,92.42,9.733]
[1772660028086,16.9712917,92.454,92.414,9.734]
[1772660029694,16.9712917,92.454,92.415,7.2246865]
[1772660030193,16.9712917,92.454,92.416,9.734]
[1772660032196,16.9712917,92.454,92.416,16.9586865]
[1772660034997,6.86293276,92.453,92.416,16.9586865]
[1772660037197,6.86293276,92.453,92.419,9.733]
[1772660037394,6.86293276,92.453,92.417,7.2246865]
[1772660038401,9.73,92.452,92.418,9.733]
[1772660041305,6.86293276,92.453,92.419,7.2246865]
[1772660042507,6.86293276,92.453,92.421,9.733]
[1772660042807,6.86293276,92.453,92.421,16.9576865]
[1772660043007,16.59293276,92.453,92.421,7.2246865]
[1772660045713,6.86293276,92.452,92.407,7.2246865]
[1772660046903,6.86293276,92.439,92.395,7.2246865]
[1772660047113,6.86293276,92.429,92.381,7.2246865]
[1772660047404,3.36979711,92.41,92.369,7.2246865]
[1772660047709,6.86293276,92.439,92.381,7.2246865]
[1772660048309,9.732,92.43,92.392,7.2246865]
[1772660048609,19.96472987,92.43,92.392,7.2246865]
[1772660049006,6.86293276,92.427,92.392,7.2246865]
[1772660050206,3.36979711,92.42,92.377,7.2246865]
[1772660051004,6.86293276,92.427,92.383,7.2246865]
[1772660051609,6.86293276,92.427,92.386,7.2246865]
[1772660052403,6.86293276,92.427,92.39,16.9606865]
[1772660052802,6.86293276,92.427,92.391,7.2246865]
[1772660052999,6.86293276,92.427,92.394,7.2246865]
[1772660058812,6.71447431,92.426,92.383,6.46583275]
[1772660059018,3.36979711,92.42,92.383,6.46583275]
[1772660059208,10.08427142,92.42,92.383,6.46583275]
[1772660061016,10.08427142,92.42,92.384,9.737]
[1772660061316,6.71447431,92.419,92.383,6.46583275]
[1772660062216,6.71447431,92.419,92.384,9.737]
[1772660062613,6.71447431,92.419,92.384,6.46583275]
[1772660062818,19.455,92.475,92.358,1.88321879]
[1772660062819,3.36979711,92.45,92.401,6.46583275]
[1772660063319,9.731,92.442,92.401,6.46583275]
[1772660064617,0.06822789,92.431,92.401,6.46583275]
[1772660082034,6.2163794,92.429,92.389,7.3339216]
[1772660083026,6.2163794,92.429,92.39,9.736]
[1772660084238,9.733,92.424,92.389,7.3339216]
[1772660085338,9.58995687,92.42,92.389,7.3339216]
[1772660086439,19.32295687,92.42,92.389,7.3339216]
[1772660087241,6.20618367,92.419,92.383,9.737]
[1772660087441,6.20606415,92.415,92.375,7.3339216]
[1772660088244,6.23507088,92.412,92.375,7.3339216]
[1772660088541,3.37033782,92.4,92.361,6.85035436]
[1772660089446,9.735,92.403,92.363,6.85035436]
[1772660091048,6.24125225,92.399,92.363,6.85035436]
[1772660094856,9.61472304,92.39,92.34,6.85035436]
[1772660095049,6.24438522,92.389,92.34,6.85035436]
[1772660095354,6.24438522,92.389,92.341,6.85035436]
[1772660095755,15.98138522,92.389,92.35,6.85035436]
[1772660098957,6.18697705,92.385,92.35,6.85035436]
[1772660100256,6.18158056,92.369,92.315,6.85035436]
[1772660100458,6.18158056,92.359,92.315,6.85035436]
[1772660101262,7.28867411,92.389,92.337,6.85035436]
[1772660102364,7.28867411,92.385,92.337,6.85035436]
[1772660102967,7.28867411,92.385,92.339,6.85035436]
[1772660104162,19.464,92.433,92.339,6.85035436]
[1772660104163,7.28867411,92.379,92.339,6.85035436]
[1772660105667,7.28867411,92.379,92.341,6.85035436]
[1772660105867,3.37033782,92.39,92.341,6.85035436]
[1772660106371,7.28867411,92.389,92.341,6.85035436]
[1772660106762,7.28867411,92.389,92.342,9.741]
[1772660106968,7.28867411,92.389,92.343,6.85035436]
[1772660108466,17.02567411,92.387,92.343,6.85035436]
[1772660108666,17.02567411,92.387,92.345,16.59135436]
[1772660111173,17.02567411,92.387,92.346,6.85035436]
[1772660111471,7.28867411,92.393,92.351,6.85035436]
[1772660111863,9.736,92.392,92.353,16.59035436]
[1772660112875,9.736,92.392,92.354,6.85035436]
[1772660113374,13.17915409,92.457,92.303,1.88442211]
[1772660113375,7.28867411,92.379,92.33,10.22069218]
[1772660113568,3.37033782,92.38,92.303,1.88442211]
[1772660113569,3.37033782,92.36,92.311,6.85035436]
[1772660113971,7.28867411,92.357,92.311,6.85035436]
[1772660115168,7.28867411,92.357,92.313,6.85035436]
[1772660115674,7.28867411,92.339,92.289,6.85035436]
[1772660115874,7.28867411,92.329,92.289,6.85035436]
[1772660117675,7.28867411,92.329,92.279,6.85035436]
[1772660118370,7.28867411,92.329,92.283,9.748]
[1772660118869,7.28867411,92.329,92.284,6.89750784]
[1772660119076,7.21201956,92.319,92.284,6.89750784]
[1772660119475,3.37033782,92.33,92.284,6.89750784]
[1772660119675,7.21201956,92.344,92.3,3.37033782]
[1772660119876,7.21201956,92.344,92.295,6.89750784]
[1772660120273,7.21201956,92.329,92.283,6.89750784]
[1772660121380,7.21201956,92.326,92.283,6.89750784]
[1772660122377,7.21201956,92.323,92.283,6.89750784]
[1772660127482,7.33220405,92.321,92.276,7.45648798]
[1772660128385,7.33220405,92.319,92.276,7.45648798]
[1772660130586,7.33220405,92.317,92.276,7.45648798]
[1772660132279,7.33220405,92.315,92.276,7.45648798]
[1772660132687,7.33220405,92.315,92.276,17.20448798]
[1772660132884,7.33220405,92.315,92.281,7.45648798]
[1772660135184,7.33220405,92.315,92.276,9.748]
[1772660135381,8.36255059,92.36,92.25,3.37859386]
[1772660135382,7.33220405,92.309,92.25,3.37859386]
[1772660136390,9.747,92.287,92.25,3.37859386]
[1772660138094,7.33220405,92.293,92.244,7.45648798]
[1772660138393,7.33220405,92.293,92.251,7.45648798]
[1772660138889,7.33220405,92.285,92.24,3.37859386]
[1772660139195,7.33220405,92.319,92.26,3.37859386]
[1772660139390,7.33220405,92.303,92.26,3.37859386]
[1772660139588,7.33220405,92.315,92.28,3.37859386]
[1772660140791,7.33220405,92.315,92.29,3.37859386]
[1772660141696,7.33220405,92.315,92.28,3.37859386]
[1772660141886,7.33220405,92.315,92.28,10.83508184]
[1772660142490,9.743,92.324,92.28,10.83508184]
[1772660142695,7.33220405,92.328,92.29,3.37859386]
[1772660144396,9.743,92.326,92.29,3.37859386]
[1772660144594,9.743,92.326,92.282,7.45648798]
[1772660146195,7.33220405,92.319,92.282,7.45648798]
[1772660147498,17.07620405,92.319,92.282,7.45648798]
[1772660152799,7.63103329,92.348,92.31,3.37859386]
[1772660153598,7.63103329,92.346,92.304,7.33706122]
[1772660156203,9.741,92.343,92.304,7.33706122]
[1772660156399,7.63103329,92.342,92.304,7.33706122]
[1772660161020,7.63103329,92.342,92.306,7.33706122]
[1772660163714,17.37103329,92.356,92.314,7.33706122]
[1772660163919,7.63103329,92.369,92.33,3.37859386]
[1772660164112,7.63103329,92.369,92.321,7.33706122]